Cogmind - Beta 13 @@@ ROGUE MODE // 2024.04.21 @ 23:10:05 Player: ThatBishHoly Result: Core destroyed Performance ------------- Evolutions (1) 500 Regions Visited (2) 400 Robots Destroyed (19) 95 Value Destroyed (459) 459 Prototype IDs (0) 0 Alien Tech Used (0) 0 Bonus (16) 16 TOTAL SCORE: 1470 Bonus ------- High Alert Combat Kills 16 Cogmind --------- Core Integrity 0/400 Matter 300/300 Energy 100/100 System Corruption 0% Temperature Cool (0) Movement Core (50) Location -9/Materials Parts ------- > --- POWER (1) -------- (None) > --- PROPULSION (4) --- (None) > --- UTILITY (2) ------ (None) > --- WEAPON (2) ------- (None) > --- INVENTORY (5) ---- (None) Peak State ------------ > --- POWER ------------ Light Ion Engine > --- PROPULSION ------- Wheel Compact Wheel > --- UTILITY ---------- Light Armor Plating Light Armor Plating > --- WEAPON ----------- Small Laser Light Assault Rifle > --- INVENTORY -------- Wheel Grenade Launcher [Rating: 7] Favorites ----------- Power Light Ion Engine Engine Light Ion Engine Propulsion Compact Wheel Leg Aluminum Leg Wheel Compact Wheel Flight Unit Flight Unit Utility Light Armor Plating Protection Light Armor Plating Weapon Light Assault Rifle Energy Gun Small Laser Ballistic Gun Light Assault Rifle Launcher Grenade Launcher Build | -11 -10 -9 ------- Run | Yrd Mat Mat Slots Evolved 2 | . . 2 Power . | . . . Propulsion 2 | . . 2 Utility . | . . . Weapon . | . . . Parts Attached 18 | 5 6 7 Power 2 | 1 1 . Engine 2 | 1 1 . Core . | . . . Reactor . | . . . Propulsion 8 | 2 2 4 Treads . | . . . Leg 2 | . . 2 Wheel 5 | 2 1 2 Hover . | . . . Flight 1 | . 1 . Utility 3 | . 2 1 Device . | . . . Storage . | . . . Processor . | . . . Hackware . | . . . Protection 3 | . 2 1 Artifact . | . . . Weapon 5 | 2 1 2 Energy Gun 3 | 1 . 2 Energy Cannon . | . . . Ballistic Gun 1 | 1 . . Ballistic Cannon . | . . . Launcher 1 | . 1 . Special Weapon . | . . . Impact Weapon . | . . . Slashing Weapon . | . . . Piercing Weapon . | . . . Special Melee Weapon . | . . . Unidentified Prototypes . | . . . Parts Lost 13 | . 7 6 Power 1 | . 1 . Propulsion 5 | . 2 3 Utility 3 | . 2 1 Weapon 4 | . 2 2 Highest Loss Streak 5 | . 5 3 To Critical Strikes . | . . . Average Slot Usage (%) 54 | . 82 26 Engine 6 | . 13 . Leg 3 | . . 6 Wheel 15 | . 25 5 Protection 9 | . 15 3 Energy Gun 7 | . 4 10 Ballistic Gun 6 | . 13 . Launcher 4 | . 8 . Naked Turns 36 | . 4 32 Heaviest Build 13 | 5 13 7 Greatest Support 26 | 20 26 20 Greatest Overweight (x) 2 | . . 2 Average Overweight (x) . | . . . Largest Inventory Capacity 5 | 5 5 5 Average Capacity 5 | 5 5 5 Most Carried 5 | 3 5 4 Average Carried 1 | . 2 . Final Capacity 5 | 5 5 5 Final Carried 5 | . 5 . Class Distribution -------------------- 100% | Mutant Dominant Class ---------------- Mutant | -10/Materials Mutant | -9/Materials Resources | -11 -10 -9 ----------- Run | Yrd Mat Mat Matter Collected 447 | 250 128 69 Remotely . | . . . Salvage Created 422 | . 322 100 Parts 31 | . 28 3 Haulers Intercepted . | . . . Recyclers Shooed 1 | . 1 . Parts Field Recycled . | . . . Retrieved Matter . | . . . Parts Self-Destructed . | . . . Prevented . | . . . Kills | -11 -10 -9 ------- Run | Yrd Mat Mat Combat Hostiles Destroyed 16 | . 14 2 Guns 5 | . 3 2 AOE 11 | . 11 . Classes Destroyed 3 | . 3 . Worker 3 | . 3 . Swarmer 6 | . 6 . Grunt 10 | . 8 2 Best Kill Streak 8 | . 8 2 Combat Bots Only 5 | . 5 2 Max Kills in Single Turn 3 | . 3 1 Gunslinging . | . . . Exploded 3 | . 3 . Melee . | . . . Uniques/NPCs Destroyed . | . . . Combat | -11 -10 -9 -------- Run | Yrd Mat Mat Hostile Shots Fired 182 | . 67 115 Missed 61 | . 17 44 Damage Taken 1464 | . 574 890 Core 488 | . 86 402 Absorbed by Shields . | . . . Core Remaining (%) 82 | 100 65 . Volleys Fired 35 | . 22 13 Largest 2 | . 2 1 Hottest 60 | . 60 50 Shots Fired 54 | . 41 13 Gun 45 | . 32 13 Cannon . | . . . Launcher 9 | . 9 . Special . | . . . Kinetic 22 | . 22 . Thermal 23 | . 10 13 Explosive 9 | . 9 . Electromagnetic . | . . . Robot Hit Streak 10 | . 7 10 Robot Miss Streak 6 | . 6 1 Penetration Max . | . . . Secondary Targets 1 | . 1 . Max Gunslinging Chain 1 | . 1 . Shots Hit Robots 36 | . 24 12 Core Hits 32 | . 26 6 Critical Kills . | . . . Critical Parts Destroyed . | . . . Critical Strikes . | . . . Melee Attacks . | . . . Impact . | . . . Slashing . | . . . Piercing . | . . . Sneak Attacks . | . . . Combat Hostiles . | . . . Follow-up Attacks . | . . . Damage Inflicted 1014 | 1 849 164 Guns 321 | . 171 150 Cannons . | . . . Explosions 678 | . 678 . Melee . | . . . Ramming 15 | 1 . 14 Kinetic 96 | . 96 . Thermal 225 | . 75 150 Explosive 678 | . 678 . Electromagnetic . | . . . Impact . | . . . Slashing . | . . . Piercing . | . . . Highest Corruption . | . . . Average Corruption . | . . . Corruption Purged . | . . . Corruption Blocked . | . . . Overload Shots . | . . . Overflow Damage . | . . . Projectiles . | . . . Explosions . | . . . Melee . | . . . Knockbacks . | . . . Impact . | . . . Kinetic . | . . . Secondary . | . . . Self-Inflicted Damage 109 | . 102 7 Shots 5 | . 5 . Rammed 2 | 1 . 1 Targets Rammed 2 | 1 . 1 Kicked . | . . . Crushed . | . . . Highest Temperature 180 | . 180 54 Average Temperature 57 | . 67 32 Received Heat Transfer 525 | . 120 405 Siege Activations . | . . . Robots Corrupted . | . . . Combat Hostiles . | . . . Parts Fried . | . . . Impact Corruptions . | . . . Robots Melted . | . . . Combat Hostiles . | . . . Parts Melted 3 | . . 3 Heat Transferred 619 | . 175 444 Parts Sabotaged . | . . . Parts Stolen . | . . . Parts Stripped . | . . . Power Chain Reactions . | . . . Alert | -11 -10 -9 ------- Run | Yrd Mat Mat Peak Influence 448 | . 448 267 Initial 172 | . . 172 Average 183 | . 189 209 Maximum Alert Level 2 | . 2 1 Low Security (%) 55 | 100 56 47 Level 1 38 | . 31 52 Level 2 5 | . 11 . Level 3 . | . . . Level 4 . | . . . Level 5 . | . . . High Security . | . . . Max Security . | . . . Squads Dispatched 5 | . 3 2 Investigation 1 | . 1 . Extermination . | . . . Reinforcement 4 | . 2 2 Assault . | . . . Garrison . | . . . Intercept . | . . . Searches Triggered . | . . . Construction Impeded . | . . . Haulers Reinforced . | . . . Active Scanning Responses . | . . . Cargo Convoy Interrupts . | . . . Stealth | -11 -10 -9 --------- Run | Yrd Mat Mat Distress Signals 1 | . . 1 Communications Jammed . | . . . Distress Signals . | . . . Times Spotted 39 | . 21 18 Peak Tracking Total 10 | . 6 10 Tactical Retreats . | . . . Traps | -11 -10 -9 ------- Run | Yrd Mat Mat Traps Triggered 1 | . 1 . Indirectly . | . . . Trap Hack Attempts . | . . . Triggered . | . . . Disarmed . | . . . Reprogrammed . | . . . Reused . | . . . Traps Extracted . | . . . Installed . | . . . Triggered . | . . . Machines | -11 -10 -9 ---------- Run | Yrd Mat Mat Machines Disabled 3 | . 3 . Max in Single Turn 1 | . 1 . Machines Repaired . | . . . Machines Dismantled . | . . . Machines Sabotaged . | . . . Overloaded Fab Kills . | . . . Hacking | -11 -10 -9 --------- Run | Yrd Mat Mat Machines Accessed 3 | . 3 . Terminals 2 | . 2 . Fabricators . | . . . Repair Stations . | . . . Recycling Units 1 | . 1 . Scanalyzers . | . . . Garrison Access . | . . . Total Hacks 5 | . 5 . Successful 3 | . 3 . Failed 2 | . 2 . Catastrophic . | . . . Database Lockouts . | . . . Manual . | . . . Terminals 4 | . 4 . Fabricators . | . . . Repair Stations . | . . . Recycling Units 1 | . 1 . Scanalyzers . | . . . Garrison Access . | . . . Terminal Hacks 2 | . 2 . Registered Components 1 | . 1 . Zone Layout 1 | . 1 . Fabricator Hacks . | . . . Repair Station Hacks . | . . . Recycling Unit Hacks 1 | . 1 . Report Inventory 1 | . 1 . Scanalyzer . | . . . Garrison Access Hacks . | . . . Unauthorized Hacks . | . . . Terminals . | . . . Fabricators . | . . . Repair Stations . | . . . Recycling Units . | . . . Scanalyzers . | . . . Garrison Access . | . . . Data Cores Recovered . | . . . Used . | . . . Hacking Detections 1 | . 1 . Full Trace Events 1 | . 1 . Feedback Events . | . . . Feedback Blocked . | . . . Robot Schematics Acquired . | . . . Robots Built . | . . . Authchips . | . . . Time . | . . . Total Robot Build Rating . | . . . Part Schematics Acquired . | . . . Parts Built . | . . . Authchips . | . . . Time . | . . . Total Part Build Rating . | . . . Parts Repaired . | . . . Time . | . . . Parts Recycled . | . . . Recycled Matter . | . . . Retrieved Matter . | . . . Retrieved Components . | . . . Parts Scanalyzed . | . . . Part Schematics Acquired . | . . . Parts Damaged . | . . . Bothacking | -11 -10 -9 ------------ Run | Yrd Mat Mat Used RIF Installer . | . . . Robots Hacked . | . . . Non-combat . | . . . Combat . | . . . Robot Hacks Applied . | . . . Relay Couplers Released . | . . . Fabnet Peak Effective % . | . . . Robots Rewired . | . . . Allies Hacked . | . . . Hacks Repelled . | . . . Allies | -11 -10 -9 -------- Run | Yrd Mat Mat Total Allies . | . . . Largest Group . | . . . Highest-Rated Group . | . . . Highest-Rated Ally . | . . . Total Orders . | . . . Ally Attacks . | . . . Total Damage . | . . . Kills . | . . . Allies Corrupted . | . . . Allies Melted . | . . . Intel | -11 -10 -9 ------- Run | Yrd Mat Mat Robot Analysis Total . | . . . Derelict Logs Recovered . | . . . Drone Launches . | . . . Drone Recoveries . | . . . Exploration | -11 -10 -9 ------------- Run | Yrd Mat Mat Turns Passed 706 | 58 321 327 Spaces Moved 605 | 64 278 263 Core 101 | 19 15 67 Treads . | . . . Legs 65 | . . 65 Wheels 436 | 45 260 131 Hover . | . . . Flight 3 | . 3 . Fastest Speed 40 | 50 40 50 Average Speed 88 | 71 87 93 Slowest Speed 150 | 80 100 150 Overloaded Moves . | . . . Propulsion Burnouts . | . . . Robots Hopped . | . . . Cave-ins Triggered . | . . . Exploration Rate (%) 22 | 3 45 18 Regions Visited 2 Branch Regions . Pre-discovered Areas . | . . . Known Exits Taken . | . . . Unknown Exits Taken 2 | 1 1 . Scrap Searched . | . . . Spaces Dug . | . . . Terrain Destroyed 47 | . 47 . Melee . | . . . Projectile . | . . . AOE 47 | . 47 . Terrain Rammed . | . . . Walls Destroyed . | . . . Machines Disabled . | . . . Actions | -11 -10 -9 --------- Run | Yrd Mat Mat Total 723 | 76 317 330 Wait 45 | . 1 44 Move 603 | 63 277 263 Hop . | . . . Pick Up 17 | 6 9 2 Fast Attach . | . . . Attach 14 | 5 2 7 Detach . | . . . Swap 4 | . 4 . Drop 4 | 1 2 1 Fire 35 | . 22 13 Melee . | . . . Ram 1 | 1 . . Kick . | . . . Crush . | . . . Escape Stasis . | . . . Rewire . | . . . Trap . | . . . Miscellaneous . | . . . Route ------- -11/Scrapyard -10/Materials (discovered 3 exits: *Mat / [*Min x2]) -9/Materials (discovered 1 exit: [*Min]) History --------- Turn | Location | Event 6 | -11/Scrapyard | Discovered new exit (range 15) 59 | -11/Scrapyard | Entered Materials 169 | -10/Materials | Discovered new exit (range 15) 187 | -10/Materials | Discovered new exit (range 13) 274 | -10/Materials | Discovered new exit (range 15) 314 | -10/Materials | Build established: Mutant 380 | -10/Materials | Entered another Materials area 380 | -9/Materials | Evolved 2 slots: Propulsion x2 407 | -9/Materials | Lost 5 parts (1p2n2w) 657 | -9/Materials | Core integrity fell below 50% 678 | -9/Materials | Core integrity fell below 20% 685 | -9/Materials | Discovered new exit (range 11) 706 | -9/Materials | Lost 3 parts (1n1u1w) 707 | -9/Materials | Core destroyed Last Messages --------------- 00611_ U-05 Engineer destroyed. 00631_ O-16 Technician: "IFF HANDSHAKE FAILED. SECURING TERMINAL." 00634_ O-16 Technician uses terminal to summon reinforcements. 00634_ ALERT: Hostiles spotted, dispatching reinforcements to Terminal M002. 00634_ O-16 Technician locks terminal. 00639_ Acquired 10 matter. 00668_ Com. Wheel destroyed. 00672_ G-47 Trooper suffers critical hit (Burn). 00674_ Hrd. Light Armor Plating destroyed. 00675_ G-34 Mercenary suffers critical hit (Burn). 00675_ G-34 Mercenary destroyed. 00675_ Med. Laser destroyed. 00685_ EXIT=FOUND 00685_ T-07 Excavator is excavating. 00699_ S-10 Pest destroyed. 00707_ Slammed into O-16 Technician. Map ----- +----------------------------------------------------+ | ??????????????????????????????????????# ?????? | | ??????????????????????????????????????# ?????? | | ??????????????????????????????????????? ?????? | | ???????????????????????????????????????# #?????? | | ??????????????????????????????????????## #?????? | | ???????????????????????????????????????+ ?????? | | ???????????????????????????????????????# #?????? | | ???????????????????????????????????????# #?????? | | ???????????????????????????????????????# ####### | | ???????????????????????????????????????# | | ???????????????????????????????????????# | | ???????????????????????????????????????# """ | | ???????????????????????????????????????# """ | | ???????????????????????????????????????##### """ | | ???????????????????????????????????????????# | | ???????????????????????????????????????????# | | ???????????????????????????????????????????# | | ???????????????????????????????????????????# | | ???????????????????????????????????????????#### | | ??????????????????????????????????????????????# | | ??????????????????????????????????????????????# | | ??????????????????????????????????????????????# | | ????????????????????????????????############### | | ????????????????????????????????# %*%= | | ?????????? ############ =[ | | ?????????? o@ k | | ?????????? ##############+########## | | ?????????? ??????????????# % #??????# | | ??????????????????????????????# "" #??????# | | ??????????????????????????????# """ #??????# | | ??????????????????????????????# S" ######## | | ??????????????????????????????# # # | | ??????????????????????????????# """ # # | | ??????????????????????????????# """ # + | | ??????????????????????????????# """ # # | | ??????????????????????????????# # # | | ??????????????????????????????########## # | | ???????????????????????????????????????########### | | ?????????????????????????????????????????????????? | | ?????????????????????????????????????????????????? | | ?????????????????????????????????????????????????? | | ?????????????????????????????????????????????????? | | ?????????????????????????????????????????????????? | | ?????????????????????????????????????????????????? | | ?????????????????????????????????????????????????? | | ?????????????????????????????????????????????????? | | ?????????????????????????????????????????????????? | | ?????????????????????????????????????????????????? | | ?????????????????????????????????????????????????? | | ?????????????????????????????????????????????????? | +----------------------------------------------------+ Best States ------------- Heat Dissipation 28 Energy Generation 10 Energy Capacity 125 Matter Stores 300 Matter Capacity 300 Sight Range 16 Terrain Scan Density 10 Armor Coverage 300 Evasion (%) 55 Item Schematics ----------------- None Robot Schematics ------------------ None Fabricated ------------ Nothing Alien Tech Used ----------------- None Achievements -------------- None Challenges ------------ None Game ------ Seed ShrapnelHugeArmor Manual? 0 Play Time 00:11:35 Cumulative 11.1 hours Start 2024.04.21 @ 22:58:59 End 2024.04.21 @ 23:10:05 Sessions 1 Manual Loads 0 Difficulty Rogue Special Mode None Game No. 32 Rogue 32 Adventurer 0 Explorer 0 Win Type - Total 0 Types 0/0/0/0/0/0/0/0/0 Lore% 12 Gallery% 23 Achievement% 19 Wizard Run 0 Options --------- Layout 1 ASCII 0 Keyboard 0 Movement Arrows Keybinds 0 Fullscreen 1 Font 16/SmallcapsGlow Map View 50x40 Zoom Use 0% Tactical HUD 1 Map Filters NONE Filters NONE Steam SD RUN: 0604502e-6c04-4a7f-96d4-cb37c60e6671